{"text_format":"1","workbook":"xlsx","n_sheets":1,"sheets":["Factorising"],"not_rendered":{"charts":0,"images":0,"macros":1,"external_links":0,"defined_names":1,"comments":0,"pivot_tables":0},"unopened":[],"bounds":{"document_bytes":16777216,"sheet_cells":100000,"rows_first":2000,"rows_last":500,"rows_between":2000,"halvings":0,"cell_chars":16384,"cell_head_chars":4096},"cells_cut":0,"cells_raw":0,"read":"whole","date_system":"1900"}

{"sheet":"Factorising","index":0,"n_rows":28,"n_cols":29,"rows_kept":28,"cut":false,"hidden":false,"merged":[]}
[{"$f":"INT(RAND()*8+2)","v":5},{"$f":"INT(RAND()*28+1)","v":8},{"$f":"IF(RAND()<0.5,2,3)","v":2},{"$f":"A1*VLOOKUP(B1,relprimes,C1,FALSE)","v":5},{"$f":"A1*VLOOKUP(B1,relprimes,IF(C1=2,3,2),FALSE)","v":40},{"$f":"HLOOKUP(INT(RAND()*6+1),$J$1:$O$2,2,FALSE)","v":"y"},null,"²",null,1,2,3,4,5,6,null,null,null,null,null,null,null,null,null,null,null,1,1,1]
[null,null,null,null,null,null,null,null,null,"a","b","c","x","y","z",null,null,null,null,null,null,null,null,null,null,null,2,1,2]
[{"$f":"\"Factorise \"&D1&F1&IF(E1>0,\" + \",\" - \")&ABS(E1)","v":"Factorise 5y + 40"},{"$f":"A1&\"(\"&IF(D1/A1=1,\"\",D1/A1)&F1&IF(E1/A1>0,\" + \",\" - \")&ABS(E1/A1)&\")\"","v":"5(y + 8)"},null,null,null,null,null,null,null,null,null,null,null,null,null,null,null,null,null,null,null,null,null,null,null,null,3,1,3]
[null,null,null,null,null,null,null,null,null,null,null,null,null,null,null,null,null,null,null,null,null,null,null,null,null,null,4,1,4]
[{"$f":"INT(RAND()*8+2)","v":6},{"$f":"INT(RAND()*28+1)","v":22},{"$f":"IF(RAND()<0.5,2,3)","v":3},{"$f":"A5*VLOOKUP(B5,relprimes,C5,FALSE)","v":42},{"$f":"IF(RAND()>0.5,1,-1)*A5*VLOOKUP(B5,relprimes,IF(C5=2,3,2),FALSE)","v":30},{"$f":"HLOOKUP(INT(RAND()*6+1),$J$1:$O$2,2,FALSE)","v":"z"},null,"²",null,null,null,null,null,null,null,null,null,null,null,null,null,null,null,null,null,null,5,1,5]
[null,null,null,null,null,null,null,null,null,null,null,null,null,null,null,null,null,null,null,null,null,null,null,null,null,null,6,1,6]
[{"$f":"\"Factorise \"&D5&F5&IF(E5>0,\" + \",\" - \")&ABS(E5)","v":"Factorise 42z + 30"},{"$f":"A5&\"(\"&IF(D5/A5=1,\"\",D5/A5)&F5&IF(E5/A5>0,\" + \",\" - \")&ABS(E5/A5)&\")\"","v":"6(7z + 5)"},null,null,null,null,null,null,null,null,null,null,null,null,null,null,null,null,null,null,null,null,null,null,null,null,7,1,7]
[null,null,null,null,null,null,null,null,null,null,null,null,null,null,null,null,null,null,null,null,null,null,null,null,null,null,8,1,8]
[{"$f":"INT(RAND()*8+2)","v":3},{"$f":"INT(RAND()*28+1)","v":17},{"$f":"IF(RAND()<0.5,2,3)","v":2},{"$f":"A9*VLOOKUP(B9,relprimes,C9,FALSE)","v":9},{"$f":"IF(RAND()>0.5,1,-1)*A9*VLOOKUP(B9,relprimes,IF(C9=2,3,2),FALSE)","v":-24},{"$f":"HLOOKUP(INT(RAND()*6+1),$J$1:$O$2,2,FALSE)","v":"z"},{"$f":"RAND()>0.5","v":true},"²",null,null,null,null,null,null,null,null,null,null,null,null,null,null,null,null,null,null,9,1,9]
[null,null,null,null,null,null,null,null,null,null,null,null,null,null,null,null,null,null,null,null,null,null,null,null,null,null,10,2,3]
[{"$f":"\"Factorise \"&D9&F9&IF(G9,H9,\"\")&IF(E9>0,\" + \",\" - \")&ABS(E9)&IF(G9,F9,\"\")","v":"Factorise 9z² - 24z"},{"$f":"A9&IF(G9,F9,\"\")&\"(\"&IF(D9/A9=1,\"\",D9/A9)&F9&IF(E9/A9>0,\" + \",\" - \")&ABS(E9/A9)&\")\"","v":"3z(3z - 8)"},null,null,null,null,null,null,null,null,null,null,null,null,null,null,null,null,null,null,null,null,null,null,null,null,11,2,5]
[null,null,null,null,null,null,null,null,null,null,null,null,null,null,null,null,null,null,null,null,null,null,null,null,null,null,12,2,7]
[{"$f":"INT(RAND()*8+2)","v":6},{"$f":"INT(RAND()*28+1)","v":3},{"$f":"IF(RAND()<0.5,2,3)","v":2},{"$f":"A13*VLOOKUP(B13,relprimes,C13,FALSE)","v":6},{"$f":"IF(RAND()>0.5,1,-1)*A13*VLOOKUP(B13,relprimes,IF(C13=2,3,2),FALSE)","v":18},{"$f":"HLOOKUP(INT(RAND()*6+1),$J$1:$O$2,2,FALSE)","v":"y"},{"$f":"RAND()>0.5","v":false},"²",null,null,null,null,null,null,null,null,null,null,null,null,null,null,null,null,null,null,13,2,9]
[null,null,null,null,null,null,null,null,null,null,null,null,null,null,null,null,null,null,null,null,null,null,null,null,null,null,14,3,4]
[{"$f":"\"Factorise \"&D13&F13&IF(G13,H13,\"\")&IF(E13>0,\" + \",\" - \")&ABS(E13)&IF(G13,F13,\"\")","v":"Factorise 6y + 18"},{"$f":"A13&IF(G13,F13,\"\")&\"(\"&IF(D13/A13=1,\"\",D13/A13)&F13&IF(E13/A13>0,\" + \",\" - \")&ABS(E13/A13)&\")\"","v":"6(y + 3)"},null,null,null,null,null,null,null,null,null,null,null,null,null,null,null,null,null,null,null,null,null,null,null,null,15,3,5]
[null,null,null,null,null,null,null,null,null,null,null,null,null,null,null,null,null,null,null,null,null,null,null,null,null,null,16,3,7]
[{"$f":"INT(RAND()*8+2)","v":4},{"$f":"INT(RAND()*28+1)","v":3},{"$f":"IF(RAND()<0.5,2,3)","v":2},{"$f":"A17*VLOOKUP(B17,relprimes,C17,FALSE)","v":4},{"$f":"IF(RAND()>0.5,1,-1)*A17*VLOOKUP(B17,relprimes,IF(C17=2,3,2),FALSE)","v":-12},{"$f":"HLOOKUP(INT(RAND()*6+1),$J$1:$O$2,2,FALSE)","v":"b"},{"$f":"RAND()>0.5","v":true},"²",null,null,null,null,null,null,null,null,null,null,null,null,null,null,null,null,null,null,17,3,8]
[null,null,null,null,null,null,null,null,null,null,null,null,null,null,null,null,null,null,null,null,null,null,null,null,null,null,18,4,5]
[{"$f":"\"Factorise \"&D17&F17&IF(G17,H17,\"\")&IF(E17>0,\" + \",\" - \")&ABS(E17)&IF(G17,F17,\"\")","v":"Factorise 4b² - 12b"},{"$f":"A17&IF(G17,F17,\"\")&\"(\"&IF(D17/A17=1,\"\",D17/A17)&F17&IF(E17/A17>0,\" + \",\" - \")&ABS(E17/A17)&\")\"","v":"4b(b - 3)"},null,null,null,null,null,null,null,null,null,null,null,null,null,null,null,null,null,null,null,null,null,null,null,null,19,4,7]
[null,null,null,null,null,null,null,null,null,null,null,null,null,null,null,null,null,null,null,null,null,null,null,null,null,null,20,4,9]
[{"$f":"INT(RAND()*8+2)","v":6},{"$f":"INT(RAND()*28+1)","v":22},{"$f":"IF(RAND()<0.5,2,3)","v":2},{"$f":"A21*VLOOKUP(B21,relprimes,C21,FALSE)","v":30},{"$f":"IF(RAND()>0.5,1,-1)*A21*VLOOKUP(B21,relprimes,IF(C21=2,3,2),FALSE)","v":42},{"$f":"HLOOKUP(INT(RAND()*6+1),$J$1:$O$2,2,FALSE)","v":"c"},{"$f":"RAND()>0.5","v":false},"²",null,null,null,null,null,null,null,null,null,null,null,null,null,null,null,null,null,null,21,5,6]
[null,null,null,null,null,null,null,null,null,null,null,null,null,null,null,null,null,null,null,null,null,null,null,null,null,null,22,5,7]
[{"$f":"\"Factorise \"&D21&F21&IF(G21,H21,\"\")&IF(E21>0,\" + \",\" - \")&ABS(E21)&IF(G21,F21,\"\")","v":"Factorise 30c + 42"},{"$f":"A21&IF(G21,F21,\"\")&\"(\"&IF(D21/A21=1,\"\",D21/A21)&F21&IF(E21/A21>0,\" + \",\" - \")&ABS(E21/A21)&\")\"","v":"6(5c + 7)"},null,null,null,null,null,null,null,null,null,null,null,null,null,null,null,null,null,null,null,null,null,null,null,null,23,5,8]
[null,null,null,null,null,null,null,null,null,null,null,null,null,null,null,null,null,null,null,null,null,null,null,null,null,null,24,5,9]
[null,null,null,null,null,null,null,null,null,null,null,null,null,null,null,null,null,null,null,null,null,null,null,null,null,null,25,6,7]
[null,null,null,null,null,null,null,null,null,null,null,null,null,null,null,null,null,null,null,null,null,null,null,null,null,null,26,7,8]
[null,null,null,null,null,null,null,null,null,null,null,null,null,null,null,null,null,null,null,null,null,null,null,null,null,null,27,7,9]
[null,null,null,null,null,null,null,null,null,null,null,null,null,null,null,null,null,null,null,null,null,null,null,null,null,null,28,8,9]